bitfinex/quotes_ETHUSD_20220212
["timestamp","ask_amount","ask_price","bid_price","bid_amount"]
[1644672941039,0.71131457,2910.7,2910.1,0.174623]
[1644672941240,0.71131457,2910.7,2910.5,0.00945829]
[1644672942150,0.71131457,2910.7,2910.2,0.003023]
[1644672942544,0.71131457,2910.7,2910.5,0.00945834]
[1644672942945,0.71131457,2910.7,2910.6,0.73268025]
[1644672943148,0.71131457,2910.7,2910.2,0.003023]
[1644672943149,0.81767461,2910.5,2910.2,0.003023]
[1644672943445,0.81767461,2910.5,2910.1,0.1716]
[1644672944695,0.81767461,2910.5,2910.0,0.003023]
[1644672946896,0.81767461,2910.5,2909.8,0.003023]
[1644672947299,1.81767461,2910.5,2910.1,0.00945873]
[1644672947493,0.55036471,2910.3,2910.1,0.00945873]
[1644672947895,1.81767461,2910.5,2910.1,0.00945873]
[1644672948348,0.81767461,2910.5,2909.8,0.003023]
[1644672948543,0.81767461,2910.5,2910.2,0.00945867]
[1644672949343,0.81767461,2910.5,2909.8,0.003023]
[1644672949746,0.81767461,2910.5,2910.2,0.00945862]
[1644672950548,0.81767461,2910.5,2909.8,0.003023]
[1644672950947,0.1718,2910.4,2910.2,0.00945862]
[1644672951147,0.81767461,2910.5,2910.2,0.00945862]
[1644672951746,0.81767461,2910.5,2909.8,0.003023]
[1644672952088,0.81767461,2910.5,2910.2,0.00945862]
[1644672953089,0.81767461,2910.5,2909.6,0.003023]
[1644672953291,1.81767461,2910.5,2910.2,0.00945862]
[1644672953690,0.81767461,2910.5,2910.2,0.00945862]
[1644672954293,0.81767461,2910.5,2910.0,0.003023]
[1644672954701,0.81767461,2910.5,2910.2,0.00945862]
[1644672955298,0.19767461,2910.5,2910.2,0.00945862]
[1644672955499,0.19767461,2910.5,2910.0,0.003023]
[1644672955865,0.19767461,2910.5,2910.2,0.00917486]
[1644672956641,0.19767461,2910.5,2909.8,0.003023]
[1644672957044,0.19767461,2910.5,2910.2,0.00917486]
[1644672957846,0.19767461,2910.5,2909.8,0.003023]
[1644672958248,0.19767461,2910.5,2910.2,0.00917486]
[1644672959045,0.19767461,2910.5,2909.6,0.003023]
[1644672959346,0.36947461,2910.5,2910.2,0.00889488]
[1644672960200,9.99185333,2910.5,2909.7,0.003023]
[1644672960395,2.63440446,2910.4,2909.7,0.003023]
[1644672960596,2.63440446,2910.4,2909.4,6.4683]
[1644672960597,5.41477671,2910.3,2910.2,0.00889488]
[1644672960794,7.01477671,2910.3,2910.2,0.00889488]
[1644672961596,7.01477671,2910.3,2909.5,0.003023]
[1644672961597,0.5115675,2909.6,2909.5,0.003023]
[1644672961798,0.5115675,2909.6,2909.0,0.003023]
[1644672962199,3.47997096,2909.5,2909.0,0.003023]
[1644672962397,0.5115675,2909.6,2908.7,3.1086]
[1644672962398,0.5115675,2909.6,2908.8,0.003023]
[1644672962597,0.5115675,2909.6,2908.8,0.174823]
[1644672962998,0.5115675,2909.6,2909.1,0.00893882]
[1644672963197,1.0,2909.8,2909.1,0.00893882]
[1644672963439,0.3,2909.9,2909.1,0.00893882]
[1644672963440,0.3,2909.9,2909.1,0.01196182]
[1644672963639,3.80767026,2910.0,2909.1,0.01196182]
[1644672963843,2.46275797,2909.9,2909.1,0.003023]
[1644672964038,1.3,2909.9,2909.1,0.003023]
[1644672964238,0.54623822,2909.8,2909.4,0.00893855]
[1644672964841,0.6,2909.9,2909.4,0.00893855]
[1644672965042,0.3,2909.9,2909.1,0.003023]
[1644672965244,0.6,2910.0,2909.1,0.003023]
[1644672965449,1.46275938,2909.9,2909.5,0.00269477]
[1644672965848,0.00308865,2909.3,2909.1,0.01078068]
[1644672966344,0.00308865,2909.3,2908.9,0.003023]
[1644672968401,0.00308865,2909.3,2908.7,0.003023]
[1644672968799,0.00308865,2909.3,2908.7,3.503023]
[1644672969003,0.00308865,2909.3,2908.8,0.003023]
[1644672969202,0.00308865,2909.3,2908.8,0.60326875]
[1644672969604,0.00308865,2909.3,2908.8,0.55326875]
[1644672970205,0.00308865,2909.3,2908.9,0.00944308]
[1644672971161,0.00308865,2909.3,2908.8,0.55326875]
[1644672971357,0.00308865,2909.3,2909.0,0.00874967]
[1644672972456,0.00308865,2909.3,2908.9,3.22578573]
[1644672972656,0.00308865,2909.3,2909.0,0.00874952]
[1644672972860,0.00308865,2909.3,2909.1,0.491]
[1644672973858,0.00308865,2909.3,2909.1,0.49974937]
[1644672974796,0.00308865,2909.3,2909.1,3.73609646]
[1644672974994,0.00308865,2909.3,2909.1,0.49974937]
[1644672976096,0.00308865,2909.3,2909.1,0.49989005]
[1644672977099,0.00308865,2909.3,2909.1,0.491]
[1644672977300,0.00308865,2909.3,2909.1,0.49989005]
[1644672978353,0.00308865,2909.3,2909.1,0.491]
[1644672978543,0.00308865,2909.3,2909.1,0.49989005]
[1644672979548,0.00308865,2909.3,2909.1,0.491]
[1644672979753,0.00308865,2909.3,2909.1,0.49986948]
[1644672980253,0.00308865,2909.3,2909.1,0.00886948]
[1644672980661,0.00308865,2909.3,2909.0,1.1607]
[1644672981053,0.00308865,2909.3,2909.1,0.00886948]
[1644672982096,0.00308865,2909.3,2909.0,1.1607]
[1644672982292,0.00308865,2909.3,2909.1,0.00886948]
[1644672982893,1.46290498,2909.4,2909.1,0.00886948]
[1644672983094,1.46290498,2909.4,2908.9,0.1718]
[1644672983495,1.46290498,2909.4,2909.1,0.00887249]
[1644672984295,1.46290498,2909.4,2908.5,1.148]
[1644672984595,1.46290498,2909.4,2909.1,0.00887233]
[1644672985500,1.46290498,2909.4,2908.7,0.03549466]
[1644672985703,2.53870498,2909.4,2908.6,0.00297549]
[1644672985951,2.63470498,2909.3,2909.1,0.00887233]
[1644672986158,0.01035596,2908.8,2908.7,0.03549466]
[1644672986547,1.95,2908.7,2908.2,0.1718]
[1644672986750,1.95,2908.7,2907.7,0.52431038]
[1644672986751,0.53966987,2907.8,2907.7,0.52431038]
[1644672986950,0.9511,2908.1,2907.7,0.52431038]
[1644672987949,0.9511,2908.1,2907.7,1.2190099]
[1644672987950,0.66487495,2908.1,2907.7,1.2190099]
[1644672988151,0.1719,2908.6,2907.7,1.2190099]
[1644672988350,1.46329449,2908.5,2907.7,1.2190099]
[1644672988555,0.1719,2908.7,2907.7,1.2190099]
[1644672988950,1.463288,2908.6,2907.7,1.2190099]
[1644672989250,1.463288,2908.6,2907.7,0.69469952]
[1644672989452,3.70635347,2908.8,2907.4,1.4065]
[1644672989453,5.69945993,2908.5,2907.4,1.4065]
[1644672989699,1.763288,2908.4,2907.4,1.4065]
[1644672989897,5.21759797,2908.3,2907.5,0.04092649]
[1644672990097,1.463288,2908.2,2907.5,0.04092649]
[1644672990499,1.463288,2908.2,2907.6,0.33455226]
[1644672990699,3.51035596,2908.8,2907.7,0.491]
[1644672990899,1.46333237,2908.7,2907.8,0.00941976]
[1644672991105,1.46333237,2908.7,2907.8,0.18131976]
[1644672991500,1.46333237,2908.7,2907.8,0.33455226]
[1644672991798,1.46333237,2908.7,2908.1,0.00941938]
[1644672992599,0.01977294,2908.8,2908.1,0.00941938]
[1644672992798,0.01035596,2908.8,2908.2,0.491]
[1644672992999,0.01977327,2908.8,2908.3,0.00941922]
[1644672993449,0.01977327,2908.8,2908.4,0.52937796]
[1644672994048,0.01035596,2908.8,2908.0,1.1709]
[1644672994250,0.0197737,2908.8,2908.5,0.009419]
[1644672994451,1.46337776,2908.7,2908.5,0.009419]
[1644672994653,0.0197737,2908.8,2908.5,0.009419]
[1644672994856,1.46335619,2908.7,2908.5,0.009419]
[1644672995057,5.0,2908.6,2908.5,0.009419]
[1644672995259,5.0,2908.6,2907.7,0.1719]
[1644672995260,11.90384535,2908.6,2907.7,0.1719]
[1644672995455,1.46335619,2908.5,2907.8,0.03768414]
[1644672995756,0.4719,2908.4,2907.8,0.03768414]
[1644672995954,0.4719,2908.4,2906.6,0.13819997]
[1644672995955,3.3,2907.9,2906.6,0.13819997]
[1644672996160,0.01279002,2908.0,2906.7,0.1719]
[1644672996161,1.63525619,2907.8,2906.7,0.1719]
[1644672996358,1.46389852,2907.7,2906.7,0.04547388]
[1644672996654,1.46389852,2907.7,2906.8,0.04490545]
[1644672996655,0.1719,2907.6,2906.8,0.04490545]
[1644672996853,0.4719,2907.6,2906.8,0.04490545]
[1644672997094,0.8126,2907.6,2906.8,0.04490545]
[1644672997297,0.64981714,2906.9,2906.2,0.1719]
[1644672997500,1.48581714,2906.9,2906.2,0.1719]
[1644672997695,0.1719,2906.8,2906.2,0.1719]
[1644672998097,0.04033157,2906.7,2906.2,0.1719]
[1644672998703,0.90105157,2906.7,2906.2,0.1719]
[1644672999094,0.90105157,2906.7,2906.3,0.0094213]
[1644672999699,3.5564712,2906.6,2906.3,0.0094213]
[1644673000001,3.5564712,2906.6,2906.2,0.1719]
[1644673000002,3.7283712,2906.6,2906.2,0.1719]
[1644673000200,1.0,2906.5,2906.3,0.0094213]
[1644673000401,3.74679561,2906.4,2906.3,0.0094213]
[1644673000599,4.259922,2906.4,2906.3,0.0094213]
[1644673000851,4.29536725,2906.4,2906.3,0.0094213]
[1644673001042,0.68502639,2906.4,2906.3,0.0094213]
[1644673001250,5.39389093,2906.4,2904.9,0.172]
[1644673001449,1.72192,2906.2,2905.8,0.03769129]
[1644673001644,4.0142913,2906.1,2905.8,0.03769129]
[1644673001846,1.0,2906.0,2905.8,0.03769129]
[1644673002044,0.1719,2905.9,2905.8,0.03769129]
[1644673002244,0.8465272,2905.9,2905.8,0.03769129]
[1644673002448,6.7074872,2905.9,2904.7,0.0029689]
[1644673002646,0.86108,2905.6,2904.7,0.0029689]
[1644673002845,0.1721,2905.5,2904.7,0.0029689]
[1644673003146,0.4721,2905.5,2904.7,0.0029689]
[1644673003349,0.9631,2905.5,2904.7,0.0029689]
[1644673003549,0.64959744,2904.8,2904.7,0.0029689]
[1644673003753,1.12169744,2904.8,2904.5,0.1719]
[1644673003950,0.1721,2904.8,2904.5,0.20957558]
[1644673004150,1.1721,2905.8,2904.5,0.20957558]
[1644673004349,0.4721,2905.8,2904.5,0.16254448]
[1644673004596,0.1721,2905.8,2905.2,0.03616619]
[1644673004803,0.1721,2906.2,2905.2,0.03616619]
[1644673005003,0.1719,2906.6,2905.3,0.68745222]
[1644673005204,0.21223157,2906.7,2905.3,1.17845222]
[1644673005400,0.04033157,2906.7,2905.3,1.17845222]
[1644673006203,0.04033157,2906.7,2906.2,0.56635784]
[1644673006601,0.04033157,2906.7,2906.3,3.73064349]
[1644673006801,0.04033157,2906.7,2906.3,4.00347454]
[1644673007000,0.04033157,2906.7,2906.3,4.17537454]
[1644673007501,0.04033157,2906.7,2906.4,0.00309421]
[1644673007703,0.04033157,2906.7,2906.5,0.491]
[1644673008002,0.04033157,2906.7,2906.6,3.31553117]
[1644673008203,0.04033157,2906.7,2906.6,3.80653117]
[1644673008445,0.04033157,2906.7,2906.6,0.491]
[1644673008948,0.04033157,2906.7,2906.6,0.6629]
[1644673009143,0.04033157,2906.7,2906.6,4.14482516]
[1644673009949,0.1719,2907.8,2906.7,3.2903]
[1644673010151,0.00941177,2907.9,2906.8,4.99332417]
[1644673010349,0.00941177,2907.9,2906.9,1.1719]
[1644673010547,0.1719,2908.7,2907.1,3.3]
[1644673010747,0.1719,2908.7,2907.2,5.13812661]
[1644673010950,0.1719,2908.7,2907.9,0.63149113]
[1644673011147,0.82237524,2907.8,2907.7,1.0069751]
[1644673011350,0.82237524,2907.8,2907.7,0.491]
[1644673017445,4.61748975,2907.8,2907.6,0.00941526]
[1644673017649,3.74735208,2907.7,2907.6,0.00941526]
[1644673017847,3.76355502,2907.7,2907.6,0.00941526]
[1644673018044,5.36355502,2907.7,2907.6,0.00941526]
[1644673018244,0.53447321,2907.2,2906.5,0.85819889]
[1644673018445,0.53447321,2907.2,2907.0,0.03766765]
[1644673018446,3.61695241,2907.1,2907.0,0.03766765]
[1644673018647,3.64721056,2907.1,2907.0,0.03766765]
[1644673018843,0.53447321,2907.2,2907.0,0.03766765]
[1644673019243,3.63106276,2907.1,2906.0,0.25]
[1644673019450,3.63106276,2907.1,2905.8,0.31009997]
[1644673019451,0.54715233,2906.5,2905.8,0.31009997]
[1644673019706,0.54715233,2906.5,2905.9,0.00292559]
[1644673020313,0.1719,2906.4,2905.9,0.00292559]
[1644673020504,1.0299,2906.4,2905.6,0.00292559]
[1644673020706,1.0299,2906.4,2906.1,0.00941691]
[1644673021507,1.89071,2906.4,2906.1,0.00941691]
[1644673021708,2.75155,2906.4,2905.1,0.00292559]
[1644673022013,0.6,2906.3,2905.1,0.00292559]
[1644673022205,0.1719,2906.2,2905.1,0.00292559]
[1644673022607,0.64217654,2905.8,2905.1,0.00292559]
[1644673024043,1.1719,2906.1,2905.1,0.00292559]
[1644673024243,1.1719,2906.1,2904.9,0.00292559]
[1644673024444,0.1719,2906.1,2905.3,0.00877069]
[1644673025050,0.77972175,2906.2,2905.4,0.61941917]
[1644673025254,0.1719,2906.4,2905.5,0.00292559]
[1644673025454,5.90627,2907.1,2905.5,0.00292559]
[1644673025455,0.1719,2906.6,2905.5,0.00292559]
[1644673025651,5.41527,2907.1,2905.6,0.18067042]
[1644673025652,0.1719,2906.9,2905.6,0.18067042]
[1644673025853,0.1719,2907.0,2905.7,0.00292559]
[1644673026254,0.5898439,2906.8,2905.9,0.60475718]
[1644673026457,0.1719,2907.0,2905.9,0.60475718]
[1644673026663,0.1719,2907.6,2906.1,0.00881248]
[1644673026861,0.82237524,2907.8,2906.2,0.6629]
[1644673027095,5.21416837,2907.7,2906.3,0.00292559]
[1644673027303,1.46416837,2907.6,2906.3,0.49392559]
[1644673027496,1.46416837,2907.6,2906.3,0.491]
[1644673027800,0.55181487,2907.3,2906.4,0.00292559]
[1644673027996,0.85181487,2907.3,2906.8,0.00881168]
[1644673028200,1.63621755,2907.2,2906.8,0.00881168]
[1644673028397,1.4643808,2907.1,2906.8,0.00881168]
[1644673028595,0.1719,2907.0,2906.8,0.00881168]
[1644673028798,1.4644659,2906.9,2906.8,0.00881168]
[1644673028997,0.50319799,2906.3,2905.7,0.00292559]
[1644673030005,1.0,2906.9,2906.1,0.03573098]
[1644673030401,0.1719,2907.0,2906.1,0.03573098]
[1644673030601,1.6,2907.1,2906.1,0.03573098]
[1644673030859,1.46436075,2907.0,2906.1,0.03573098]
[1644673031046,0.52174938,2907.0,2906.2,0.63373372]
[1644673031247,0.52174938,2907.0,2906.3,0.00292559]
[1644673031447,0.52174938,2907.0,2906.1,0.03573098]
[1644673031649,0.52174938,2907.0,2906.4,0.00882212]
[1644673032450,0.52174938,2907.0,2906.1,0.03573098]
[1644673032754,0.52174938,2907.0,2906.6,0.00882196]
[1644673032948,0.01206633,2906.4,2906.1,0.0739497]
[1644673033550,0.01206633,2906.4,2906.1,0.07102411]
[1644673033751,0.01206633,2906.4,2906.1,0.03573098]
[1644673034349,0.6714516,2906.4,2906.1,0.03573098]
[1644673034592,0.6714516,2906.4,2906.0,0.02665323]
[1644673035599,0.01206633,2906.4,2906.0,0.02665323]
[1644673036004,0.1719,2906.3,2906.0,0.02665323]
[1644673036300,4.83123758,2906.3,2906.1,0.00309127]
[1644673036501,3.63328631,2906.2,2906.1,0.00309127]
[1644673036799,3.80518631,2906.2,2906.1,0.00309127]
[1644673036997,5.37846396,2906.2,2906.1,0.00309127]
[1644673037401,5.37846396,2906.2,2906.0,0.02665323]
[1644673037598,1.1719,2906.1,2906.0,0.03606733]
[1644673037798,0.1719,2906.1,2906.0,0.03606733]
[1644673038002,1.1719,2906.1,2906.0,0.03606733]
[1644673038201,4.74988846,2906.1,2906.0,0.03606733]
[1644673038446,4.74988846,2906.1,2906.0,0.02665323]
[1644673038644,6.21456791,2906.1,2906.0,0.02665323]
[1644673039243,6.21456791,2906.1,2905.9,0.03617618]
[1644673039443,6.00178615,2906.0,2905.9,0.03617618]
[1644673039647,6.17368615,2906.0,2905.9,0.03617618]
[1644673039847,4.7090067,2906.0,2905.9,0.02676198]
[1644673040653,5.27467777,2906.0,2905.9,0.02676198]
[1644673040851,7.03943405,2906.0,2905.9,0.02676198]
[1644673041049,0.86105,2905.6,2904.6,0.00292559]
[1644673041250,0.86105,2905.6,2905.4,0.01249532]
[1644673041251,4.02448263,2905.5,2905.4,0.01249532]
[1644673041449,0.1719,2905.5,2905.4,0.01249532]
[1644673041649,4.19687851,2905.5,2905.4,0.01249532]
[1644673041949,4.14672122,2905.5,2905.4,0.01249532]
[1644673042199,4.16880517,2905.5,2904.6,0.00292559]
[1644673042397,0.58585964,2905.5,2904.6,0.00292559]
[1644673042596,0.58585964,2905.5,2905.3,0.00945328]
[1644673042998,4.22342245,2905.5,2905.3,0.00945328]
[1644673043201,4.22493661,2905.5,2905.3,0.00945328]
[1644673043398,0.58585964,2905.5,2904.6,0.00292559]
[1644673043595,0.58585964,2905.5,2905.3,0.00308845]
[1644673043996,1.0,2905.7,2905.3,0.00308845]
[1644673044298,0.1719,2905.9,2905.3,0.00308845]
[1644673044497,0.1719,2905.9,2904.7,0.491]
[1644673044703,4.808578,2905.9,2904.8,0.00292559]
[1644673044901,1.0,2905.8,2905.4,0.00308834]
[1644673045102,0.61940399,2905.6,2905.4,0.00308834]
[1644673045501,0.3,2905.6,2905.4,0.00308834]
[1644673045708,1.3,2905.6,2905.0,0.00292559]
[1644673045952,0.3,2905.6,2905.4,0.00945617]
[1644673046351,3.72803668,2905.7,2905.4,0.00945617]
[1644673046551,0.1719,2905.7,2905.4,0.00945617]
[1644673046753,1.0,2905.6,2905.4,0.00945617]
[1644673046952,0.1719,2905.7,2904.6,0.00292559]
[1644673047154,0.3,2905.6,2905.4,0.00945611]
[1644673047356,0.70731008,2905.5,2905.4,0.00945611]
[1644673048155,0.70731008,2905.5,2904.7,0.00292559]
[1644673048359,0.70731008,2905.5,2905.3,0.00945622]
[1644673049456,0.70731008,2905.5,2904.7,0.00292559]
[1644673049702,0.1721,2905.4,2905.3,0.00945627]
[1644673050504,0.1721,2905.4,2904.2,0.00292559]
[1644673050705,0.52687117,2905.0,2904.2,0.00292559]
[1644673050914,1.49097117,2905.0,2904.8,0.03783098]
[1644673051111,3.3,2904.8,2904.2,0.00292559]
[1644673051310,1.03346,2904.7,2904.2,0.00292559]
[1644673051605,1.86136,2904.7,2904.2,0.00292559]
[1644673051806,0.85,2904.8,2904.0,0.56898798]
[1644673051807,0.55,2904.8,2904.0,0.56898798]
[1644673052006,1.0,2904.7,2904.1,0.00292559]
[1644673052206,0.52687117,2905.0,2904.1,0.00292559]
[1644673052207,0.82687117,2905.0,2904.1,0.00292559]
[1644673052406,0.82687117,2905.0,2903.8,0.00292559]
[1644673052407,0.1721,2904.6,2903.8,0.00292559]
[1644673052607,1.07687117,2905.0,2903.6,0.00292559]
[1644673052608,0.1721,2904.9,2903.6,0.00292559]
[1644673053206,0.1721,2904.9,2904.2,0.70174512]
[1644673053458,0.1721,2905.1,2904.3,0.00292559]
[1644673054348,0.00639828,2904.9,2904.3,0.00292559]
[1644673054548,0.00639828,2904.9,2903.8,0.00292559]
[1644673055351,0.86124,2905.0,2903.8,0.00292559]
[1644673055553,0.6768655,2904.8,2903.9,0.54273861]
[1644673055751,0.6768655,2904.8,2904.2,0.00945216]
[1644673056553,1.16124,2905.0,2904.0,0.00292559]
[1644673056753,0.1721,2904.7,2904.4,0.009452]
[1644673056955,0.18155008,2904.9,2904.4,0.009452]
[1644673057200,0.00945008,2904.9,2904.4,0.009452]
[1644673057601,0.00945008,2904.9,2904.5,0.491]
[1644673057798,0.75500993,2905.7,2904.5,0.491]
[1644673057799,0.1721,2905.6,2904.5,0.491]
[1644673057998,0.00945041,2904.9,2904.6,0.00292559]
[1644673058199,0.00945041,2904.9,2904.5,0.50045184]
[1644673058200,0.00945041,2904.9,2904.7,0.491]
[1644673058396,0.00945041,2904.9,2904.6,0.49392559]
[1644673058603,0.00945041,2904.9,2904.6,0.491]
[1644673058999,0.13819997,2905.7,2904.6,0.491]
[1644673059299,0.00945063,2904.9,2904.7,0.00292559]
[1644673059499,0.00945063,2904.9,2904.8,0.56198464]
[1644673060104,0.1721,2905.6,2904.8,0.56198464]
[1644673060303,0.1721,2905.6,2904.9,0.00292559]
[1644673060505,0.00945069,2905.0,2904.9,0.00292559]
[1644673060708,0.00945069,2905.0,2904.8,0.56198464]
[1644673060946,0.00945069,2905.0,2904.7,0.01237739]
[1644673061151,0.00945069,2905.0,2904.7,0.0094518]
[1644673061347,0.1721,2905.6,2904.6,0.491]
[1644673061546,0.00945069,2905.0,2904.7,0.01237739]
[1644673061746,0.00945069,2905.0,2904.7,0.0094518]
[1644673061947,0.00945069,2905.0,2904.9,0.67674576]
[1644673062646,0.1721,2906.1,2904.9,0.67674576]
[1644673062848,3.14986633,2906.4,2905.0,0.00292559]
[1644673062849,0.00945058,2905.1,2905.0,0.00292559]
[1644673063049,0.00945058,2905.1,2905.0,0.491]
[1644673063853,0.1721,2906.3,2905.0,5.791]
[1644673064053,0.00945048,2905.2,2905.1,0.00292559]
[1644673064249,0.00945048,2905.2,2905.1,5.6271]
[1644673064906,0.01206633,2906.4,2905.1,5.6271]
[1644673065109,1.46453247,2906.3,2906.2,0.7011019]
[1644673065303,1.46453247,2906.3,2905.7,0.491]
[1644673065905,0.01206633,2906.4,2905.7,0.791]
[1644673066211,0.01206633,2906.4,2906.3,0.69207253]
[1644673066403,0.01206633,2906.4,2905.7,1.091]
[1644673066404,0.01206633,2906.4,2905.8,3.6943]
[1644673066608,0.00944948,2906.1,2905.8,3.6943]
[1644673067407,0.01206633,2906.4,2906.0,0.69125186]
[1644673067608,0.00944953,2906.1,2905.8,3.6943]
[1644673068444,0.00944953,2906.1,2905.7,0.491]
[1644673068645,0.01206633,2906.4,2905.7,1.18371182]
[1644673068854,0.00944953,2906.1,2905.7,1.18371182]
[1644673069850,0.01206633,2906.4,2905.7,1.18371182]
[1644673070051,0.00944958,2906.0,2905.7,1.18371182]
[1644673070251,0.00944958,2906.0,2905.8,0.1719]
[1644673070649,0.00944958,2906.0,2905.9,0.491]
[1644673070852,4.958e-05,2906.0,2905.9,0.491]
[1644673071054,0.01206633,2906.4,2905.9,7.171]
[1644673071254,0.01206633,2906.4,2906.3,0.54258645]
[1644673071458,0.01206633,2906.4,2906.3,1.03358645]
[1644673071751,0.01206633,2906.4,2906.3,1.63358645]
[1644673072595,0.01206633,2906.4,2906.3,1.091]
[1644673072795,0.01206633,2906.4,2906.3,0.491]
[1644673073796,0.01206633,2906.4,2905.9,3.0181]
[1644673074003,0.01206633,2906.4,2905.9,3.5091]
[1644673074395,0.01206633,2906.4,2905.9,3.8091]
[1644673074594,0.01206633,2906.4,2905.9,0.791]
[1644673075000,0.0063985,2906.3,2905.9,0.791]
[1644673075861,0.01206633,2906.4,2905.9,0.791]
[1644673076053,0.01206633,2906.4,2906.0,0.1719]
[1644673076054,0.00944937,2906.2,2906.0,0.1719]
[1644673076952,0.01206633,2906.4,2906.0,0.1719]
[1644673077153,0.00944937,2906.2,2906.0,0.1719]
[1644673078156,0.01206633,2906.4,2906.0,0.1719]
[1644673078557,0.00944937,2906.2,2906.0,0.1719]
[1644673078756,0.00944937,2906.2,2905.9,0.6629]
[1644673079354,0.01206633,2906.4,2905.9,0.6629]
[1644673079595,0.00944943,2906.2,2905.9,0.6629]
[1644673079999,0.00944943,2906.2,2905.9,0.1719]
[1644673080599,0.01206633,2906.4,2905.9,0.1719]
[1644673080799,0.00944943,2906.2,2905.9,0.1719]
[1644673080999,0.00944943,2906.2,2905.8,1.1597]
[1644673081498,0.00944943,2906.2,2906.0,0.57960187]
[1644673081898,0.01206633,2906.4,2906.0,0.57960187]
[1644673082200,0.00944937,2906.2,2906.0,0.57960187]
[1644673082999,0.01206633,2906.4,2906.0,0.57960187]
[1644673083449,0.00944937,2906.2,2906.0,0.57960187]
[1644673084255,0.01206633,2906.4,2906.0,0.57960187]
[1644673084451,0.00944937,2906.2,2906.0,0.57960187]
[1644673085455,0.01206633,2906.4,2906.0,0.57960187]
[1644673085654,0.00944937,2906.2,2906.0,0.57960187]
[1644673086657,0.01206633,2906.4,2906.0,0.57960187]
[1644673086861,0.00944937,2906.2,2906.0,0.57960187]
[1644673087101,0.00944937,2906.2,2905.8,1.1597]
[1644673087102,1.4607975,2905.9,2905.8,1.1597]
[1644673087401,1.4607975,2905.9,2905.3,0.00945261]
[1644673087600,1.46479693,2905.8,2905.3,0.00945261]
[1644673087798,0.1719,2905.7,2904.5,0.00292559]
[1644673087998,1.46479693,2905.6,2904.7,0.64355567]
[1644673088201,0.1719,2905.7,2905.3,0.00945151]
[1644673088606,0.1719,2905.8,2905.3,0.00945151]
[1644673088798,1.46487016,2905.7,2905.3,0.00945151]
[1644673088999,0.1719,2905.6,2904.8,0.00292559]
[1644673089204,0.1719,2905.7,2904.8,0.00292559]
[1644673089413,1.46496206,2905.6,2904.6,0.00292559]
[1644673089603,1.93706206,2905.6,2905.3,0.0094514]
[1644673089805,1.46496206,2905.5,2905.3,0.0094514]
[1644673090004,0.1719,2905.4,2905.3,0.0094514]
[1644673090206,0.69797815,2905.2,2904.6,0.00292559]
[1644673090405,1.0,2905.3,2904.6,0.00292559]
[1644673090605,0.86111,2905.4,2904.6,0.00292559]
[1644673090859,1.4651007,2905.3,2904.6,0.00292559]
[1644673091651,1.4651007,2905.3,2904.8,0.00944632]
[1644673092653,1.4651007,2905.3,2904.3,0.00292559]
[1644673092853,1.4651007,2905.3,2904.9,0.00944622]
[1644673093053,0.1721,2905.2,2904.9,0.00944622]
[1644673093253,3.73908129,2905.2,2904.9,0.00944622]
[1644673093461,1.46518276,2905.1,2904.9,0.00944622]
[1644673093655,3.88558797,2905.0,2904.9,0.00944622]
[1644673093855,3.88558797,2905.0,2904.3,0.17502559]
[1644673093856,6.95077073,2905.0,2904.3,0.17502559]
[1644673094055,1.46518276,2904.9,2904.4,0.03515896]
[1644673094257,3.64016232,2904.8,2904.4,0.03515896]
[1644673094457,1.1721,2904.7,2904.4,0.03515896]
[1644673094900,0.1721,2904.7,2904.4,0.03515896]
[1644673095100,0.1721,2904.7,2904.3,0.17502559]
[1644673095301,0.1721,2904.8,2904.4,0.00878889]
[1644673095502,0.1721,2904.9,2904.4,0.00878889]
[1644673096203,0.1721,2904.9,2904.3,0.17502559]
[1644673096402,0.1721,2904.9,2904.5,0.00878879]
[1644673097400,0.1721,2904.9,2904.3,0.17502559]
[1644673097603,0.1721,2904.9,2904.6,0.68885658]
[1644673097804,0.1721,2904.9,2904.6,0.69764532]
[1644673098453,0.25,2905.0,2903.9,1.1494]
[1644673098848,0.25,2905.0,2904.3,0.63521898]
[1644673099450,0.4721,2905.2,2904.3,0.63521898]
[1644673099653,1.4721,2905.2,2904.3,0.63521898]
[1644673099857,0.4721,2905.2,2904.3,0.63521898]
[1644673100053,1.4721,2905.2,2904.3,0.63521898]
[1644673100252,0.4721,2905.2,2904.3,0.63521898]
[1644673100458,1.72248,2905.0,2904.0,0.00305513]
[1644673100655,1.63744421,2904.9,2904.0,0.00305513]
[1644673100855,1.46534421,2904.8,2904.0,0.00305513]
[1644673101054,1.46534421,2904.8,2903.6,0.25]
[1644673101055,0.1721,2904.7,2903.6,0.25]
[1644673101255,0.1721,2904.7,2904.0,0.00271869]
[1644673101455,0.1721,2904.7,2904.1,0.61451338]
[1644673101655,2.00750937,2904.9,2904.1,0.61451338]
[1644673101656,0.1721,2904.8,2904.1,0.61451338]
[1644673102503,0.00910303,2904.6,2904.1,0.61451338]
[1644673102699,0.1721,2904.5,2904.1,0.61451338]
[1644673103197,0.00910303,2904.6,2904.1,0.61451338]
[1644673103402,1.0,2904.7,2904.1,0.61451338]
[1644673103598,3.52795717,2904.9,2904.1,0.61451338]
[1644673103897,0.00910317,2904.4,2904.1,0.61451338]
[1644673104706,3.71457572,2904.7,2904.1,0.61451338]
[1644673104902,0.00910322,2904.4,2904.1,0.61451338]
[1644673105108,0.00910322,2904.4,2904.0,0.0089524]
[1644673105869,0.1721,2904.5,2903.6,1.1869]
[1644673106069,0.00827491,2904.3,2904.0,0.00827602]
[1644673106470,0.1721,2904.2,2904.0,0.00827602]
[1644673106970,0.51618962,2904.4,2903.7,0.58029077]
[1644673107172,0.68828962,2904.4,2903.5,7.316]
[1644673107472,0.008275,2904.2,2904.0,0.00827582]
[1644673107877,0.008275,2904.2,2903.2,0.03311157]
[1644673107878,0.01299312,2903.9,2903.2,0.03311157]
[1644673108079,0.70155602,2903.4,2903.2,0.03311157]
[1644673108273,0.70155602,2903.4,2902.8,3.8026]
[1644673108474,0.87365602,2903.4,2902.8,3.7526]
[1644673108873,0.87365602,2903.4,2902.1,0.23789099]
[1644673109073,0.87365602,2903.4,2902.0,11.17558633]
[1644673109373,0.87365602,2903.4,2902.0,11.53769534]
[1644673109797,0.87365602,2903.4,2902.6,0.00835663]
[1644673110598,0.87365602,2903.4,2902.1,2.37903078]
[1644673110798,0.87365602,2903.4,2902.1,2.34559926]
[1644673110999,0.87365602,2903.4,2902.9,0.00835637]
[1644673111400,5.53537602,2903.4,2902.9,0.00835637]
[1644673111803,1.0,2903.3,2902.9,0.00835637]